bitfinex/quotes_ETHUSD_20220103
["timestamp","ask_amount","ask_price","bid_price","bid_amount"]
[1641192168052,0.0561096,3809.4,3809.1,0.6561897]
[1641192168255,0.00397896,3809.3,3809.1,0.6561897]
[1641192168450,0.00397896,3809.3,3809.1,1.6561897]
[1641192168651,0.0561096,3809.4,3809.2,0.3]
[1641192169055,0.00397896,3809.3,3809.2,0.65621]
[1641192169254,0.00397896,3809.3,3809.1,2.61243]
[1641192169255,2.78961553,3809.2,3809.1,3.95215724]
[1641192169456,2.78961553,3809.2,3809.1,6.57696724]
[1641192169655,2.79302607,3809.2,3809.1,6.57696724]
[1641192169902,0.00341054,3809.2,3809.1,6.57696724]
[1641192170102,0.00341054,3809.2,3809.1,5.23724]
[1641192173850,0.05525445,3809.5,3809.1,5.23724]
[1641192174050,0.05525445,3809.5,3809.3,1.3122721]
[1641192174250,0.00113685,3809.4,3809.3,1.3122721]
[1641192174451,1.71117331,3810.0,3809.3,3.2932721]
[1641192174650,0.05577746,3810.1,3809.7,1.3121]
[1641192174949,0.00284211,3809.9,3809.8,0.381]
[1641192175451,0.00284211,3809.9,3809.8,1.03705]
[1641192175652,0.00284211,3809.9,3809.8,2.03705]
[1641192176052,0.00284211,3809.9,3809.8,2.6931]
[1641192176452,0.00284211,3809.9,3809.8,5.2931]
[1641192176654,0.00284211,3809.9,3809.8,6.52590446]
[1641192183955,0.00284211,3809.9,3809.8,5.2931]
[1641192184155,0.00284211,3809.9,3809.8,3.25605]
[1641192184357,0.00284211,3809.9,3809.8,4.59577724]
[1641192186029,0.00284211,3809.9,3809.8,4.55605]
[1641192189653,0.00284211,3809.9,3809.8,4.85605]
[1641192193705,0.00284211,3809.9,3809.8,4.55605]
[1641192194303,0.00284211,3809.9,3809.8,4.87251893]
[1641192197764,1.74313264,3810.6,3810.2,0.65608]
[1641192197971,1.74313264,3810.6,3810.4,0.65606]
[1641192198168,1.74711161,3810.6,3810.4,0.65606]
[1641192198769,1.74711161,3810.6,3810.4,1.31211]
[1641192198770,0.00397897,3810.6,3810.4,1.31211]
[1641192198974,0.00397897,3810.6,3810.4,2.61211]
[1641192199570,2.83164718,3810.5,3810.4,2.61211]
[1641192199771,2.83164718,3810.5,3810.4,1.95606]
[1641192200006,2.83164718,3810.5,3810.4,2.25606]
[1641192201615,1.74313264,3811.0,3810.7,1.312]
[1641192202008,0.00170527,3810.9,3810.8,0.65599]
[1641192202408,0.00170527,3810.9,3810.8,1.95599]
[1641192202611,0.00170527,3810.9,3810.8,2.96229589]
[1641192203658,0.00170527,3810.9,3810.8,3.61828589]
[1641192205356,0.00170527,3810.9,3810.8,3.63461914]
[1641192205755,0.00170527,3810.9,3810.8,2.62831325]
[1641192206956,0.00170527,3810.9,3810.8,6.34114408]
[1641192208501,0.00170527,3810.9,3810.8,5.22831325]
[1641192219064,0.00170527,3810.9,3810.8,4.57232325]
[1641192223613,0.00170527,3810.9,3810.8,3.57232325]
[1641192232013,4.31556424,3811.2,3810.8,3.57232325]
[1641192232216,2.5724316,3811.0,3810.8,3.57232325]
[1641192232617,2.5224316,3811.0,3810.8,3.57232325]
[1641192232818,4.93860881,3811.1,3810.8,3.57232325]
[1641192233114,0.00227369,3811.0,3810.8,3.57232325]
[1641192233515,4.93576669,3811.1,3810.8,3.57232325]
[1641192233516,0.00170527,3810.9,3810.8,3.57232325]
[1641192238218,0.00170527,3810.9,3810.8,3.27232325]
[1641192239623,0.00170527,3810.9,3810.8,3.57232325]
[1641192240225,2.38457939,3810.9,3810.8,3.57232325]
[1641192241029,2.38457939,3810.9,3810.8,2.61633325]
[1641192241670,5.03153885,3810.9,3810.8,2.61633325]
[1641192241971,5.68776885,3810.9,3810.8,2.61633325]
[1641192242367,3.04080939,3810.9,3810.8,2.61633325]
[1641192242970,3.04080939,3810.9,3810.8,2.91633325]
[1641192243173,3.42180939,3810.9,3810.8,2.91633325]
[1641192244474,6.063023,3810.9,3810.8,2.91633325]
[1641192244900,6.063023,3810.9,3810.8,2.61633325]
[1641192247506,6.06127518,3810.9,3810.8,2.61633325]
[1641192247802,3.42006157,3810.9,3810.8,2.61633325]
[1641192250770,3.42006157,3810.9,3810.8,2.91633325]
[1641192253212,8.71238073,3810.9,3810.8,2.91633325]
[1641192253811,6.06116284,3810.9,3810.8,2.91633325]
[1641192254410,8.71238073,3810.9,3810.8,2.91633325]
[1641192256484,6.07127946,3810.9,3810.8,2.91633325]
[1641192258290,8.71146071,3810.9,3810.8,2.91633325]
[1641192258692,6.07127946,3810.9,3810.8,2.91633325]
[1641192258996,6.07127946,3810.9,3810.8,2.61633325]
[1641192259794,8.70605915,3810.9,3810.8,2.61633325]
[1641192262228,6.07127946,3810.9,3810.8,2.61633325]
[1641192264765,8.70605915,3810.9,3810.8,2.61633325]
[1641192268917,6.07127946,3810.9,3810.8,2.61633325]
[1641192271864,6.07127946,3810.9,3810.8,2.91633325]
[1641192272061,5.88251316,3810.9,3810.8,2.91633325]
[1641192274067,5.88251316,3810.9,3810.8,2.61633325]
[1641192277822,3.68844789,3810.9,3810.8,2.61633325]
[1641192278026,3.30744789,3810.9,3810.8,2.91633325]
[1641192278226,2.65121789,3810.9,3810.8,2.91633325]
[1641192280263,1.75680088,3811.0,3810.8,2.91633325]
[1641192281162,4.40801877,3811.0,3810.8,2.91633325]
[1641192282427,2.65121789,3810.9,3810.8,2.91633325]
[1641192284620,2.65121789,3810.9,3810.8,2.61633325]
[1641192287292,0.65628,3810.7,3810.5,0.05567426]
[1641192287695,0.65628,3810.7,3810.6,0.00170527]
[1641192288892,3.28642405,3810.7,3810.6,2.60170527]
[1641192289492,0.65628,3810.7,3810.6,2.60170527]
[1641192290132,3.28642405,3810.7,3810.6,2.60170527]
[1641192290533,0.65628,3810.7,3810.6,2.60170527]
[1641192294768,2.41016909,3810.7,3810.6,2.60170527]
[1641192295168,0.65628,3810.7,3810.6,2.60170527]
[1641192299019,3.28642405,3810.7,3810.6,2.60264859]
[1641192301561,3.96742405,3810.7,3810.6,1.71117331]
[1641192301764,3.96742405,3810.7,3809.3,4.96673207]
[1641192301765,0.0602,3809.9,3809.3,1.33173207]
[1641192301962,0.6564589,3809.7,3809.3,1.33173207]
[1641192302163,0.6564589,3809.7,3809.4,0.00682108]
[1641192302164,0.381,3809.6,3809.4,0.00682108]
[1641192302364,1.45465593,3809.6,3809.4,0.00682108]
[1641192302561,1.45465593,3809.6,3808.7,0.01080005]
[1641192302763,1.45465593,3809.6,3808.5,2.56043839]
[1641192302764,0.65658,3809.2,3808.5,2.56043839]
[1641192302963,0.381,3809.1,3808.4,1.30166413]
[1641192303170,0.381,3809.1,3808.1,1.78735674]
[1641192303171,1.3131192,3808.8,3808.1,1.78735674]
[1641192303366,1.4929184,3809.0,3807.9,1.79937517]
[1641192303564,0.00113684,3808.7,3808.2,0.00170528]
[1641192303771,1.01852586,3808.6,3808.2,0.00170528]
[1641192303963,1.01852586,3808.6,3808.1,0.0022737]
[1641192304364,1.67510586,3808.6,3808.1,0.0022737]
[1641192304567,1.67510586,3808.6,3808.0,0.00284212]
[1641192304568,3.5860747,3808.5,3808.0,0.00284212]
[1641192304932,3.2838931,3808.3,3808.0,0.00094336]
[1641192305136,3.08905174,3808.2,3808.0,0.00094336]
[1641192305336,2.59312773,3808.1,3808.0,0.00094336]
[1641192305637,3.27412773,3808.1,3808.0,0.00378548]
[1641192307541,6.19319053,3808.1,3808.0,0.00378548]
[1641192309383,6.19319053,3808.1,3808.0,0.02456524]
[1641192309384,8.83126983,3808.1,3808.0,0.02456524]
[1641192309685,8.83126983,3808.1,3808.0,0.045345]
[1641192309883,5.9381421,3808.1,3808.0,0.05567256]
[1641192310086,5.5571421,3808.1,3808.0,0.05567256]
[1641192310284,2.9190628,3808.1,3808.0,0.05567256]
[1641192310486,2.9190628,3808.1,3808.0,2.65567256]
[1641192310883,2.9190628,3808.1,3808.0,2.95567256]
[1641192311687,2.9190628,3808.2,3808.0,2.95567256]
[1641192312186,2.9190628,3808.2,3808.1,0.0022737]
[1641192312416,2.9190628,3808.2,3808.1,0.0032171]
[1641192312923,1.76084863,3808.3,3808.1,0.0032171]
[1641192313323,1.76084863,3808.3,3808.2,0.00170528]
[1641192313521,1.76084863,3808.3,3808.2,0.00264868]
[1641192313923,4.67991143,3808.4,3808.2,0.00264868]
[1641192314124,4.67991143,3808.4,3808.0,2.94953576]
[1641192314424,0.6566404,3808.3,3808.0,2.9296994]
[1641192314624,0.6566404,3808.3,3808.2,0.02077976]
[1641192314925,2.9190628,3808.4,3808.2,0.04250292]
[1641192315125,4.67991143,3808.3,3808.2,0.04250292]
[1641192315726,1.76084863,3808.3,3808.2,0.04250292]
[1641192317985,0.00113685,3808.4,3808.2,0.04250292]
[1641192318386,0.00113685,3808.4,3808.2,0.05538243]
[1641192318689,0.05611396,3808.7,3808.2,0.05538243]
[1641192318892,1.73256259,3808.8,3808.6,0.01285288]
[1641192319086,1.36856259,3808.8,3808.6,0.01379628]
[1641192319285,1.36856259,3808.8,3808.6,0.67004858]
[1641192319484,1.36856259,3808.8,3808.7,4.34457612]
[1641192319684,2.6380793,3809.1,3808.7,4.34551952]
[1641192319928,4.4635997,3809.9,3808.7,4.34551952]
[1641192319929,0.0022737,3808.8,3808.7,6.65800952]
[1641192320325,2.6380793,3809.6,3808.7,6.65800952]
[1641192320525,0.00795793,3809.8,3808.8,1.3]
[1641192320726,0.00625266,3809.5,3808.9,2.42768972]
[1641192320926,0.00738951,3809.7,3808.9,2.42863317]
[1641192321126,0.00568424,3809.4,3808.9,2.42863317]
[1641192321325,0.00682108,3809.6,3808.9,2.42863317]
[1641192321529,2.6982793,3809.9,3808.9,3.08489317]
[1641192321530,0.00511581,3809.3,3808.9,3.08489317]
[1641192321729,0.00625266,3809.5,3808.9,3.08489317]
[1641192321928,0.00454739,3809.2,3809.0,1.0]
[1641192322129,0.00568424,3809.4,3809.1,0.65629]
[1641192322331,2.6982793,3809.9,3809.1,0.65723347]
[1641192322731,0.00795793,3809.8,3809.1,0.65723347]
[1641192323131,2.6982793,3809.9,3809.1,0.65723347]
[1641192323132,0.00738951,3809.7,3809.1,0.65723347]
[1641192323530,0.0602,3809.9,3809.1,0.65723347]
[1641192323531,0.00682108,3809.6,3809.1,0.95723347]
[1641192323976,0.00625266,3809.5,3809.1,3.26272876]
[1641192324373,0.00568424,3809.4,3809.2,1.0]
[1641192324572,0.00568424,3809.4,3809.2,1.00094347]
[1641192324770,0.00511581,3809.3,3809.2,1.00094347]
[1641192325975,0.00511581,3809.3,3809.2,1.01126777]
[1641192326177,0.00511581,3809.3,3809.2,3.35087443]
[1641192326374,0.00511581,3809.3,3809.2,1.01126777]
[1641192326577,0.00511581,3809.3,3809.2,0.01126777]
[1641192326979,0.00511581,3809.3,3809.2,2.68929609]
[1641192327463,0.00511581,3809.3,3809.2,3.68929609]
[1641192328261,0.00511581,3809.3,3809.2,1.31126777]
[1641192328665,0.00511581,3809.3,3809.2,0.31126777]
[1641192328863,0.00511581,3809.3,3809.2,2.33129555]
[1641192329163,0.00511581,3809.3,3809.2,3.33129555]
[1641192330164,0.00511581,3809.3,3809.2,1.03204753]
[1641192330370,0.00511581,3809.3,3809.2,0.05282729]
[1641192330565,0.00511581,3809.3,3809.2,3.38900225]
[1641192330765,0.00511581,3809.3,3809.2,0.05282729]
[1641192330966,0.00511581,3809.3,3809.2,2.36813683]
[1641192331181,0.00511581,3809.3,3809.2,2.65282729]
[1641192331583,0.00511581,3809.3,3809.2,4.95776684]
[1641192331885,0.00511581,3809.3,3809.2,2.65282729]
[1641192332092,0.00511581,3809.3,3809.2,5.26739475]
[1641192332284,0.00511581,3809.3,3809.2,2.95282729]
[1641192333885,0.00511581,3809.3,3809.2,5.26293096]
[1641192335119,2.9807594,3809.3,3809.2,2.95282729]
[1641192335415,0.00511581,3809.3,3809.2,2.95282729]
[1641192336014,2.9807594,3809.3,3809.2,2.95282729]
[1641192338683,2.9807594,3809.3,3809.2,5.28627369]
[1641192338884,2.9807594,3809.3,3809.2,6.28627369]
[1641192339085,2.9807594,3809.3,3809.2,5.28627369]
[1641192339890,2.9807594,3809.3,3809.2,5.24562127]
[1641192340088,2.9807594,3809.3,3809.2,2.95282729]
[1641192341187,2.9807594,3809.3,3809.2,2.95282735]
[1641192346474,2.9807594,3809.3,3809.2,5.24661227]
[1641192346673,2.9807594,3809.3,3809.2,2.95282735]
[1641192346875,2.9807594,3809.3,3809.2,5.22834778]
[1641192347074,2.9807594,3809.3,3809.2,2.95282735]
[1641192348173,2.9807594,3809.3,3809.2,5.22717017]
[1641192348375,2.9807594,3809.3,3809.2,2.95282735]
[1641192350427,2.9807594,3809.3,3809.2,2.65282735]
[1641192350626,2.9807594,3809.3,3809.2,2.65282738]
[1641192352827,2.9807594,3809.3,3809.2,2.95282738]
[1641192355178,2.97564359,3809.3,3809.2,2.95282738]
[1641192356377,2.97564359,3809.8,3809.2,2.95282738]
[1641192356578,2.97564359,3809.8,3809.2,2.93204762]
[1641192356779,2.98360152,3809.8,3809.5,0.02077976]
[1641192356980,2.97564359,3809.7,3809.5,0.02172332]
[1641192357180,2.97564359,3809.7,3809.6,0.02077976]
[1641192357414,2.97564359,3809.7,3809.6,0.02172332]
[1641192362277,2.97564359,3809.7,3809.6,0.04250308]
[1641192363080,2.97564359,3809.7,3809.6,1.35473308]
[1641192364082,2.97564359,3809.7,3809.6,3.70066916]
[1641192364481,2.97564359,3809.7,3809.6,4.70066916]
[1641192364683,0.0602,3809.9,3809.6,4.70066916]
[1641192364934,0.0602,3809.9,3809.8,0.65613]
[1641192365133,0.0602,3809.9,3809.8,0.65707356]
[1641192365334,0.0602,3809.9,3809.8,0.02172332]
[1641192365838,3.01931979,3809.9,3809.8,0.02172332]
[1641192367436,3.01931979,3809.9,3809.8,0.04250308]
[1641192367838,0.65641,3809.6,3809.2,2.6103243]
[1641192368039,1.03742,3809.5,3809.2,2.6103243]
[1641192369171,0.65641,3809.4,3809.2,2.6103243]
[1641192369570,0.00511581,3809.3,3809.2,2.6103243]
[1641192370071,2.9642356,3809.3,3809.2,2.6103243]
[1641192399482,2.95911979,3809.3,3809.2,2.6103243]
[1641192399884,6.90010311,3809.3,3808.4,0.0556733]
[1641192400081,2.44675727,3808.5,3808.4,0.0556733]
[1641192400281,2.5668001,3808.5,3808.4,0.0556733]
[1641192401280,1.31322,3808.3,3807.8,1.33173207]
[1641192401480,3.708881,3808.3,3807.8,1.33173207]
[1641192401680,4.008881,3808.3,3807.9,0.00284212]
[1641192401884,4.008881,3808.3,3808.1,0.05534433]
[1641192402086,2.33964358,3808.2,3808.1,0.05534433]
[1641192402527,5.29876337,3808.2,3808.1,0.05534433]
[1641192403132,2.95911979,3808.2,3808.1,0.05534433]
[1641192403334,2.95911979,3808.2,3807.8,2.6]
[1641192403531,1.31328,3808.1,3807.8,2.6]
[1641192403732,1.31328,3808.1,3807.9,0.00284212]
[1641192403931,2.95911979,3808.0,3807.9,0.00284212]
[1641192405335,0.65664,3808.1,3807.9,0.00284212]
[1641192405541,1.31306,3808.5,3807.9,0.00284212]
[1641192405735,0.65651,3808.3,3807.9,0.00284212]
[1641192406185,3.1062,3808.8,3807.9,1.00284212]
[1641192406582,0.00170527,3808.7,3808.0,0.00227369]
[1641192406783,0.00170527,3808.7,3808.1,0.65644]
[1641192406982,0.65647,3808.5,3808.1,0.95644]
[1641192407187,0.65647,3808.5,3808.2,0.00113685]
[1641192409591,0.65647,3808.5,3808.0,0.00227369]
[1641192410028,0.65649,3808.4,3808.0,0.00227369]
[1641192412329,0.65762685,3808.6,3808.0,0.00227369]
[1641192412731,0.00113685,3808.6,3808.0,0.00227369]
[1641192413773,0.65649,3808.5,3808.0,0.00227369]
[1641192414173,0.00113685,3808.6,3808.0,0.00227369]
[1641192416079,0.65762685,3808.6,3808.0,0.00227369]
[1641192418319,0.6565,3808.5,3808.0,0.00227369]
[1641192420426,0.00113685,3808.6,3808.0,0.65873369]
[1641192420829,0.00113685,3808.6,3808.1,0.00170527]
[1641192422199,0.65761685,3808.6,3808.1,0.00170527]
[1641192422904,0.65761685,3808.6,3808.0,0.00227369]
[1641192424703,0.65761685,3808.6,3808.0,0.65873369]
[1641192425131,0.65761685,3808.6,3808.1,0.00170527]
[1641192426737,0.65651,3808.4,3808.1,0.00170527]
[1641192426939,0.65651,3808.4,3808.0,0.00227369]
[1641192429391,0.65761685,3808.6,3808.0,0.00227369]
[1641192430188,0.00113685,3808.6,3808.0,0.00227369]
[1641192430389,2.97821204,3808.5,3808.0,0.00227369]
[1641192430694,2.97821204,3808.5,3808.0,0.65874369]
[1641192431091,0.00113685,3808.6,3808.1,0.00170527]
[1641192431894,2.97821204,3808.4,3808.1,0.00170527]
[1641192432725,2.97934889,3808.6,3808.1,0.00170527]
[1641192432932,2.97821204,3808.3,3808.1,0.00170527]
[1641192433130,2.97821204,3808.3,3808.0,0.00227369]
[1641192433729,2.97934889,3808.6,3808.0,0.00227369]
[1641192434129,0.65653,3808.3,3808.0,0.00227369]
[1641192434932,0.00113685,3808.6,3808.0,0.00227369]
[1641192436187,0.6565,3808.5,3808.0,0.00227369]
[1641192436981,2.97825564,3808.4,3808.0,0.00227369]
[1641192441144,3.63475564,3808.4,3808.0,0.00227369]
[1641192442140,2.97825564,3808.3,3808.0,0.00227369]
[1641192444998,3.63477564,3808.3,3808.0,0.00227369]
[1641192446002,2.97825564,3808.2,3808.0,0.00227369]
[1641192459982,2.97825564,3808.4,3808.0,0.00227369]
[1641192460285,2.97825564,3808.4,3808.0,0.65873299]
[1641192460484,2.97825564,3808.4,3808.0,1.31521299]
[1641192460685,2.97825564,3808.4,3808.1,0.00170527]
[1641192462529,2.97825564,3808.4,3808.1,0.65817527]
[1641192462928,2.97825564,3808.4,3808.2,0.00113685]
[1641192463428,3.63475564,3808.4,3808.2,0.00113685]
[1641192463828,2.97825564,3808.4,3808.2,0.00113685]
[1641192464030,2.97825564,3808.4,3808.1,0.00170527]
[1641192464435,2.97825564,3808.3,3808.1,0.00170527]
[1641192464630,2.97825564,3808.3,3808.1,0.65817527]
[1641192465031,2.97825564,3808.3,3808.2,0.00113685]
[1641192465233,0.65648,3808.5,3808.2,0.00113685]
[1641192466035,2.97825564,3808.4,3808.2,0.00113685]
[1641192468492,2.97729564,3808.4,3808.2,0.00113685]
[1641192473789,3.63380564,3808.4,3808.2,0.00113685]
[1641192474192,3.63380564,3808.4,3808.0,0.00227369]
[1641192474797,0.65651,3808.4,3808.0,0.00227369]
[1641192477201,0.65648,3808.6,3808.0,0.00227369]
[1641192478541,0.65648,3808.6,3808.0,0.65875369]
[1641192478946,0.65648,3808.6,3808.1,0.00170527]
[1641192481887,0.0022737,3808.8,3808.1,0.00170527]
[1641192481888,0.65652,3808.5,3808.1,0.00170527]
[1641192482491,0.65652,3808.5,3808.0,0.00227369]
[1641192483291,0.00170527,3808.7,3808.0,0.00227369]
[1641192483292,0.65653,3808.4,3808.0,0.00227369]
[1641192488785,1.31308,3808.4,3808.0,0.00227369]
[1641192489185,2.97848294,3808.3,3808.0,0.00227369]
[1641192489384,3.63503294,3808.3,3808.0,0.00227369]
[1641192489984,2.97848294,3808.2,3808.0,0.00227369]
[1641192491585,2.3064572,3808.1,3808.0,0.00227369]
[1641192491985,5.28494014,3808.1,3808.0,0.00227369]
[1641192492442,5.94160014,3808.1,3808.0,0.00227369]
[1641192493642,5.28494014,3808.1,3808.0,0.00227369]
[1641192496881,5.94161014,3808.1,3808.0,0.00227369]
[1641192497082,11.19361014,3808.1,3808.0,0.00227369]
[1641192497286,11.19361014,3808.1,3807.8,2.55227369]
[1641192497484,0.65667,3808.0,3807.8,2.55227369]
[1641192498284,2.97848294,3807.9,3807.8,2.55227369]
[1641192498688,5.32168848,3807.9,3807.8,2.55341054]
[1641192499692,5.31469181,3807.9,3807.8,2.55341054]
[1641192501945,2.97148627,3807.9,3807.8,2.55341054]
[1641192502147,5.26341088,3807.9,3807.8,2.55341054]
[1641192503547,2.97148627,3807.9,3807.8,2.55341054]
[1641192506189,5.90867,3808.1,3807.8,2.55341054]
[1641192508642,0.65664,3808.0,3807.8,2.55341054]
[1641192510444,0.65671,3807.9,3807.8,2.55341054]
[1641192514602,0.65664,3808.0,3807.8,2.55341054]
[1641192517641,1.31333,3808.0,3807.8,2.55341054]
[1641192517940,5.252,3807.9,3807.8,2.55341054]
[1641192520094,8.23092899,3807.9,3807.8,2.55341054]
[1641192520296,10.63953789,3807.9,3807.8,2.55341054]
[1641192525141,10.63953789,3807.9,3807.5,0.05534531]
[1641192525142,0.65673,3807.8,3807.5,0.05534531]
[1641192525344,2.87266025,3807.6,3807.5,0.05534531]
[1641192525539,4.47293783,3807.6,3807.5,0.05534531]
[1641192525739,7.15227758,3807.6,3807.5,0.05534531]
[1641192526406,0.65689,3807.3,3806.9,6.21]
[1641192526605,3.60330884,3807.2,3806.9,4.84665632]
[1641192526808,5.252,3807.1,3807.0,0.00454739]
[1641192527007,6.3751,3807.1,3807.0,0.00454739]
[1641192527204,6.3751,3807.1,3806.4,0.00795793]
[1641192527604,2.62364591,3807.0,3806.4,0.00795793]
[1641192527805,5.252,3806.9,3806.4,0.00795793]
[1641192528004,1.31381,3806.7,3806.4,0.00795793]
[1641192528205,7.73456396,3806.6,3806.4,0.00795793]
[1641192528405,2.31493374,3806.5,3806.4,0.00795793]
[1641192528715,5.252,3806.6,3806.4,0.00795793]
[1641192529112,2.36848495,3806.5,3806.4,0.00795793]
[1641192529710,8.23092899,3806.6,3806.4,0.00795793]
[1641192529937,2.97892899,3806.5,3806.4,0.00795793]
[1641192530735,2.97892899,3806.5,3805.7,0.01193689]
[1641192530936,0.65689,3806.2,3805.7,0.01193689]
[1641192532141,2.97892899,3806.1,3805.7,0.01193689]
[1641192532343,3.63582899,3806.1,3805.6,1.01250532]
[1641192532542,3.63582899,3806.1,3805.7,0.01193689]
[1641192533343,2.97892899,3806.0,3805.6,0.01250532]
[1641192533543,2.97892899,3806.0,3805.7,0.01193689]
[1641192533795,2.97892899,3806.0,3805.6,0.01250532]
[1641192534197,3.63584899,3806.0,3805.6,0.01250532]
[1641192534400,2.34088555,3805.9,3805.6,0.01250532]
[1641192534601,2.34088555,3805.9,3805.6,2.61250532]
[1641192534802,2.34088555,3805.9,3805.6,2.6]
[1641192534996,2.34088555,3805.9,3805.7,0.01193689]
[1641192535598,4.29291899,3806.0,3805.7,0.01193689]
[1641192535800,2.97892899,3805.8,3805.7,0.01193689]
[1641192536198,2.97892899,3805.8,3805.1,0.01534743]
[1641192536402,2.28712172,3805.8,3805.1,0.01534743]
[1641192536600,3.63593899,3805.9,3805.1,0.01534743]
[1641192536999,3.63593899,3805.9,3805.0,0.01591586]
[1641192537205,2.97892899,3805.7,3805.0,0.01591586]
[1641192538246,0.657,3805.6,3805.0,0.01591586]
[1641192539250,2.97892899,3805.5,3805.0,0.01591586]
[1641192550421,0.65703,3805.3,3805.0,0.01591586]
[1641192550822,2.97892899,3805.5,3805.0,0.67288586]
[1641192551125,2.97892899,3805.5,3805.1,0.01534743]
[1641192551522,2.97892899,3805.5,3805.1,1.32911743]
[1641192551725,2.97892899,3805.5,3805.3,0.01265734]
[1641192551925,2.97892899,3805.5,3805.4,3.781]
[1641192552123,2.97892899,3806.1,3805.4,3.48090297]
[1641192552325,2.97892899,3806.1,3805.4,3.78090297]
[1641192552531,2.97892899,3806.1,3805.5,1.01307374]
[1641192552739,2.97892899,3806.1,3805.6,1.69451]
[1641192552934,2.97892899,3806.1,3805.8,0.65669]
[1641192553131,2.97892899,3806.1,3805.9,0.381]
[1641192553331,2.97892899,3806.5,3806.0,1.78626081]
[1641192553536,2.97892899,3806.5,3806.1,0.381]
[1641192553736,2.97892899,3806.5,3806.2,1.08090227]
[1641192553935,2.97892899,3806.5,3806.2,2.78439704]
[1641192554136,2.97892899,3806.5,3806.3,0.00852635]
[1641192554339,2.97892899,3806.5,3806.4,0.6567]
[1641192554538,2.97892899,3806.5,3806.4,0.9567]
[1641192554840,2.97892899,3806.5,3806.4,0.96465793]
[1641192555838,2.97892899,3806.5,3806.4,1.26465793]
[1641192558003,2.97892899,3806.5,3806.4,0.96465793]
[1641192558603,5.252,3806.6,3806.4,2.75091874]
[1641192559000,5.252,3806.6,3806.5,1.0073895]
[1641192559598,5.202,3806.6,3806.5,1.0073895]
[1641192560232,8.18130793,3806.6,3806.5,1.0073895]
[1641192561040,8.18130793,3806.6,3806.5,1.3073895]
[1641192561442,8.18130793,3806.6,3806.5,0.0073895]
[1641192567832,5.202,3806.6,3806.5,0.0073895]
[1641192569142,8.18143366,3806.6,3806.5,0.0073895]
[1641192571791,8.17749416,3806.6,3806.5,0.0073895]
[1641192573694,8.17749416,3806.6,3806.5,1.0073895]
[1641192573899,8.17749416,3806.6,3806.5,0.0073895]
[1641192574397,5.1980605,3806.6,3806.5,1.79365031]
[1641192574797,8.17750081,3806.6,3806.5,0.0073895]
[1641192588996,8.17750081,3806.6,3806.4,0.6567]
[1641192590644,2.97944031,3806.5,3806.4,0.6567]
[1641192591043,2.97944031,3806.5,3806.4,0.66465793]
[1641192593342,2.97944031,3806.5,3806.4,0.00795793]
[1641192598642,2.97944031,3806.5,3806.3,0.93338793]
[1641192598845,3.63622031,3806.5,3806.3,0.65679]
[1641192599447,1.07411783,3806.4,3806.3,0.65679]
[1641192599645,1.07411783,3806.4,3806.1,0.65681]
[1641192599845,1.73091783,3806.4,3806.1,0.65681]
[1641192600048,1.73091783,3806.4,3806.2,0.00113684]
[1641192601895,1.73091783,3806.4,3806.0,2.44311081]
[1641192601896,2.97967602,3806.3,3806.1,0.00170527]
[1641192602694,2.97967602,3806.3,3806.0,0.00227369]
[1641192602896,0.65687,3806.2,3806.0,0.00227369]
[1641192603095,0.65687,3806.2,3805.9,0.00284211]
[1641192604503,2.32446293,3806.1,3805.9,0.00284211]
[1641192604710,6.61804895,3806.1,3805.9,0.00284211]
[1641192604944,2.56640567,3806.0,3805.9,0.00284211]
[1641192605145,2.56640567,3806.0,3805.7,0.00397896]
[1641192605345,3.88037567,3806.0,3805.7,0.00397896]
[1641192605845,0.65699,3805.9,3805.7,0.00397896]
[1641192606048,2.43900192,3805.8,3805.7,0.00397896]
[1641192606449,2.43900192,3805.8,3805.5,0.00511581]
[1641192606647,2.43900192,3805.8,3805.3,0.00625266]
[1641192606847,0.657,3805.7,3805.3,0.00625266]
[1641192607048,3.00751836,3805.6,3805.3,0.00625266]
[1641192607648,3.00751836,3805.6,3805.1,0.0073895]
[1641192607851,3.63672602,3805.5,3805.1,0.0073895]
[1641192609399,2.97967602,3805.4,3805.1,0.0073895]
[1641192609597,5.30452843,3805.4,3805.1,0.0073895]
[1641192610196,2.32485241,3805.4,3805.1,0.0073895]
[1641192610396,0.65705,3805.5,3805.1,0.0073895]
[1641192610799,1.3141,3805.5,3805.1,0.0073895]
[1641192611000,2.98050912,3805.3,3805.1,0.0073895]
[1641192611310,3.63757912,3805.3,3805.1,0.0073895]
[1641192612104,0.65707,3805.3,3804.7,1.79592401]
[1641192612544,0.65707,3805.3,3804.8,0.66612477]
[1641192612946,2.98050912,3805.2,3804.9,0.00852635]
[1641192613345,0.65705,3805.1,3804.9,0.00852635]
[1641192614153,2.98050912,3805.0,3804.9,0.00852635]
[1641192614549,2.98050912,3805.0,3804.8,0.00909477]
[1641192614751,0.65705,3805.1,3804.8,0.00909477]
[1641192614955,0.65705,3805.1,3804.8,1.79535558]
[1641192615250,0.65705,3805.1,3804.9,0.00852635]
[1641192616050,2.98056396,3805.0,3804.9,0.00852635]
[1641192617508,2.98056396,3805.0,3804.8,0.00909477]
[1641192617704,5.29011477,3805.0,3804.8,0.00909477]
[1641192618608,2.98056396,3804.9,3804.8,0.00909477]
[1641192620241,2.98056396,3805.0,3804.8,0.00909477]
[1641192620438,5.29118205,3805.0,3804.8,0.00909477]
[1641192620839,1.31414,3805.1,3804.8,0.00909477]
[1641192621439,1.31414,3805.1,3804.3,2.32629022]
[1641192621440,1.31414,3805.1,3804.5,0.01080004]
[1641192621639,0.65709,3805.1,3804.4,0.01136847]
[1641192621839,0.65711,3804.9,3804.4,0.01136847]
[1641192624226,0.65711,3804.8,3804.4,0.01136847]
[1641192629559,3.63995569,3804.7,3804.4,0.01136847]
[1641192629956,3.63995569,3804.7,3804.3,0.01193689]
[1641192630560,1.97159,3804.7,3804.3,0.01193689]
[1641192630759,0.65716,3804.5,3804.3,0.01193689]
[1641192631297,3.73607417,3805.0,3804.3,0.01193689]
[1641192631298,3.62690596,3805.0,3804.3,0.01193689]
[1641192631499,1.31428,3805.0,3804.3,0.01193689]
[1641192631697,0.05545332,3805.1,3804.3,1.01193689]
[1641192632099,0.05545332,3805.1,3804.4,0.01136847]
[1641192632499,0.05545332,3805.1,3804.4,0.66846847]
[1641192632699,0.05545332,3805.1,3804.4,0.6571]
[1641192632904,0.05545332,3805.1,3804.5,0.01080004]
[1641192633099,5.8551405,3805.0,3804.5,0.01080004]
[1641192633304,5.1980605,3805.0,3804.5,0.01080004]
[1641192634944,5.1980605,3805.0,3804.6,0.65707]
[1641192635144,0.6571,3804.9,3804.6,0.65707]
[1641192635346,0.6571,3804.9,3804.7,0.0096632]
[1641192635552,5.1980605,3804.8,3804.7,0.0096632]
[1641192637247,5.1980605,3804.8,3804.5,0.01080004]
[1641192641898,5.1980605,3804.8,3804.6,0.65708]
[1641192642298,5.1980605,3804.8,3804.7,0.0096632]